[Event "84th ESP-ch 2019"]
[Site "Marbella"]
[Date "2019.11.19"]
[Round "4.12"]
[White "Alsina Leal, Daniel"]
[Black "Calzetta Ruiz, Monica"]
[Result "0-1"]
[ECO "B76"]
[WhiteElo "2467"]
[BlackElo "2251"]
[Annotator "ChessBase"]
[PlyCount "136"]
[EventDate "2019.11.16"]
[EventType "swiss"]
[EventCountry "ESP"]
[SourceTitle "playchess.com"]
[Source "ChessBase"]
[SourceQuality "1"]
[TimeControl "5400+30"]

1. e4 c5 {[%emt 0:02:52]} 2. Nf3 {[%emt 0:00:00]} d6 {[%emt 0:00:13]} 3. d4 {[%emt 0:00:00]} cxd4 {[%emt 0:00:05]} 4. Nxd4 {[%emt 0:00:00]} Nf6 {[%emt 0:00:08]} 5. Nc3 {[%emt 0:00:00]} g6 {[%emt 0:00:06]} 6. Be3 {[%emt 0:00:08]} Bg7 {[%emt 0:00:11]} 7. f3 {[%emt 0:00:05]} O-O {[%emt 0:00:46]} 8. Qd2 {[%emt 0:00:06]} Nc6 {[%emt 0:00:06]} 9. O-O-O {[%emt 0:00:17]} d5 {[%emt 0:00:20]} 10. Nxc6 {[%emt 0:00:17]} bxc6 {[%emt 0:00:09]} 11. Bh6 {[%emt 0:00:08]} Be6 {[%emt 0:06:29]} 12. exd5 {[%emt 0:03:40]} cxd5 {[%emt 0:01:44]} 13. Bxg7 {[%emt 0:09:02]} Kxg7 {[%emt 0:00:21]} 14. g4 {[%emt 0:00:29]} Qa5 {[%emt 0:43:09]} 15. g5 {[%emt 0:08:52]} Nh5 {[%emt 0:00:20]} 16. Qd4+ {[%emt 0:05:40]} Kg8 {[%emt 0:00:08]} 17. Nxd5 {[%emt 0:02:43]} Rfd8 {[%emt 0:00:14]} 18. Bc4 {[%emt 0:48:44]} Bxd5 {[%emt 0:01:13]} 19. Bxd5 {[%emt 0:00:06]} e6 {[%emt 0:02:15]} 20. Bxa8 {[%emt 0:00:29]} Rxd4 {[%emt 0:00:08]} 21. Rxd4 {[%emt 0:00:03]} Qxa2 {[%emt 0:02:16]} 22. Rhd1 {[%emt 0:00:41]} Qa1+ {[%emt 0:01:53]} 23. Kd2 {[%emt 0:00:04]} Qxb2 {[%emt 0:00:11]} 24. Rd8+ {[%emt 0:01:41]} Kg7 {[%emt 0:00:06]} 25. Be4 {[%emt 0:01:03]} Nf4 {[%emt 0:06:18]} 26. Rd7 {[%emt 0:04:13]} a5 {[%emt 0:01:33]} 27. Ke3 {[%emt 0:04:06]} Qe5 {[%emt 0:02:00]} 28. c4 {[%emt 0:03:51]} Qxg5 {[%emt 0:10:50]} 29. Kd4 {[%emt 0:00:29]} Ne2+ {[%emt 0:04:46]} 30. Kd3 {[%emt 0:00:12]} Nf4+ {[%emt 0:01:22]} 31. Kd4 {[%emt 0:00:04]} Qf6+ {[%emt 0:05:58]} 32. Kc5 {[%emt 0:00:26]} Qc3 {[%emt 0:01:28]} 33. Rb1 {[%emt 0:05:35]} Qa3+ {[%emt 0:01:46]} 34. Kc6 {[%emt 0:00:32]} Qa4+ {[%emt 0:00:04]} 35. Kd6 {[%emt 0:00:22]} Qxc4 {[%emt 0:00:16]} 36. Rbb7 {[%emt 0:00:19]} Qd4+ {[%emt 0:02:11]} 37. Kc6 {[%emt 0:00:54]} Qf6 {[%emt 0:00:59]} 38. Kb5 {[%emt 0:00:21]} Nh3 {[%emt 0:00:55]} 39. Kxa5 {[%emt 0:00:51]} Ng5 {[%emt 0:00:17]} 40. Kb4 {[%emt 0:01:13]} h5 {[%emt 0:01:08]} 41. h4 {[%emt 0:00:17]} Nxe4 {[%emt 0:00:39]} 42. fxe4 {[%emt 0:00:08]} Qxh4 {[%emt 0:01:50]} 43. Rxf7+ {[%emt 0:00:18]} Kh6 {[%emt 0:00:02]} 44. Rh7+ {[%emt 0:00:34]} Kg5 {[%emt 0:00:02]} 45. Rb5+ {[%emt 0:00:08]} Kf4 {[%emt 0:00:08]} 46. e5 {[%emt 0:02:06]} Qe1+ {[%emt 0:00:03]} 47. Kb3 {[%emt 0:00:42]} g5 {[%emt 0:01:41]} 48. Rh6 {[%emt 0:00:38]} Qd1+ {[%emt 0:00:29]} 49. Kb4 {[%emt 0:00:42]} Qd4+ {[%emt 0:00:45]} 50. Ka3 {[%emt 0:00:51]} Qc3+ {[%emt 0:00:17]} 51. Ka4 {[%emt 0:00:12]} h4 {[%emt 0:00:35]} 52. Rxe6 {[%emt 0:00:45]} h3 {[%emt 0:00:44]} 53. Rf6+ {[%emt 0:00:28]} Kg4 {[%emt 0:00:16]} 54. Rh6 {[%emt 0:00:27]} Qc2+ {[%emt 0:00:28]} 55. Ka3 {[%emt 0:00:49]} h2 {[%emt 0:00:34]} 56. Rb2 {[%emt 0:00:34]} Qc3+ {[%emt 0:00:25]} 57. Ka2 {[%emt 0:00:18]} Qa5+ {[%emt 0:00:22]} 58. Kb3 {[%emt 0:00:32]} Qb5+ {[%emt 0:00:11]} 59. Ka3 {[%emt 0:00:36]} Qc5+ {[%emt 0:00:16]} 60. Rb4+ {[%emt 0:00:36]} Kg3 {[%emt 0:00:14]} 61. Ka4 {[%emt 0:00:25]} h1=Q {[%emt 0:00:22]} 62. Rxh1 {[%emt 0:00:35]} Qc6+ {[%emt 0:00:02]} 63. Rb5 {[%emt 0:00:16]} Qxh1 {[%emt 0:00:06]} 64. e6 {[%emt 0:00:45]} g4 {[%emt 0:00:18]} 65. Rb6 {[%emt 0:00:27]} Qe4+ {[%emt 0:00:37]} 66. Kb5 {[%emt 0:00:15]} Qe5+ {[%emt 0:00:11]} 67. Ka6 {[%emt 0:00:31]} Kh2 {[%emt 0:00:14]} 68. Kb7 {[%emt 0:00:21]} g3 {[%emt 0:00:31]} 0-1

[Event "84th ESP-ch 2019"]
[Site "Marbella"]
[Date "2019.11.19"]
[Round "4.13"]
[White "Alvarez Fernandez, Enrique"]
[Black "Diaz Camallonga, Carles"]
[Result "1/2-1/2"]
[ECO "C07"]
[WhiteElo "2349"]
[BlackElo "2465"]
[Annotator "ChessBase"]
[PlyCount "79"]
[EventDate "2019.11.16"]
[EventType "swiss"]
[EventCountry "ESP"]
[SourceTitle "playchess.com"]
[Source "ChessBase"]
[SourceQuality "1"]
[TimeControl "5400+30"]

1. d4 {[%emt 0:00:11]} e6 {[%emt 0:00:00]} 2. e4 {[%emt 0:00:11]} d5 {[%emt 0:00:00]} 3. Nd2 {[%emt 0:00:14]} c5 {[%emt 0:00:40]} 4. exd5 {[%emt 0:00:42]} Qxd5 {[%emt 0:01:11]} 5. Ngf3 {[%emt 0:00:16]} cxd4 {[%emt 0:00:04]} 6. Bc4 {[%emt 0:00:16]} Qd6 {[%emt 0:00:05]} 7. O-O {[%emt 0:00:26]} Nf6 {[%emt 0:00:03]} 8. Nb3 {[%emt 0:00:22]} Nc6 {[%emt 0:00:03]} 9. Nbxd4 {[%emt 0:00:21]} Nxd4 {[%emt 0:00:08]} 10. Qxd4 {[%emt 0:00:07]} Qxd4 {[%emt 0:00:05]} 11. Nxd4 {[%emt 0:00:09]} Bd7 {[%emt 0:00:01]} 12. Rd1 {[%emt 0:00:27]} Rc8 {[%emt 0:01:22]} 13. Be2 {[%emt 0:00:55]} Bc5 {[%emt 0:01:28]} 14. c3 {[%emt 0:02:00]} e5 {[%emt 0:18:24]} 15. Nb3 {[%emt 0:08:56]} Bb6 {[%emt 0:00:17]} 16. Bf3 {[%emt 0:04:01]} Bc6 {[%emt 0:01:37]} 17. Re1 {[%emt 0:04:53]} Nd7 {[%emt 0:10:38]} 18. Bxc6 {[%emt 0:10:16]} Rxc6 {[%emt 0:00:03]} 19. Nd4 {[%emt 0:02:15]} Bxd4 {[%emt 0:29:41]} 20. cxd4 {[%emt 0:00:05]} f6 {[%emt 0:00:05]} 21. dxe5 {[%emt 0:09:11]} fxe5 {[%emt 0:00:13]} 22. Bd2 {[%emt 0:00:42]} Kd8 {[%emt 0:09:07]} 23. Bc3 {[%emt 0:02:04]} Re8 {[%emt 0:00:04]} 24. Re4 {[%emt 0:05:31]} Ree6 {[%emt 0:10:35]} 25. Rae1 {[%emt 0:04:37]} Ke7 {[%emt 0:00:28]} 26. f3 {[%emt 0:03:39]} Kf7 {[%emt 0:01:42]} 27. Kf1 {[%emt 0:04:17]} Rc5 {[%emt 0:01:55]} 28. R1e3 {[%emt 0:13:08]} g5 {[%emt 0:01:52]} 29. h4 {[%emt 0:03:07]} h6 {[%emt 0:00:43]} 30. hxg5 {[%emt 0:00:13]} hxg5 {[%emt 0:00:03]} 31. Kf2 {[%emt 0:07:31]} a6 {[%emt 0:00:19]} 32. Rd3 {[%emt 0:03:56]} Nf6 {[%emt 0:00:14]} 33. Re1 {[%emt 0:02:54]} e4 {[%emt 0:05:31]} 34. Rde3 {[%emt 0:01:33]} Nd5 {[%emt 0:00:08]} 35. Rxe4 {[%emt 0:00:09]} Rxe4 {[%emt 0:00:04]} 36. Rxe4 {[%emt 0:00:07]} Nxc3 {[%emt 0:00:03]} 37. bxc3 {[%emt 0:00:06]} Rxc3 {[%emt 0:00:02]} 38. Rb4 {[%emt 0:02:25]} Rc2+ {[%emt 0:00:40]} 39. Kg3 {[%emt 0:00:17]} Rxa2 {[%emt 0:00:04]} 40. Rxb7+ {[%emt 0:00:07]} 1/2-1/2

[Event "84th ESP-ch 2019"]
[Site "Marbella"]
[Date "2019.11.19"]
[Round "4.14"]
[White "Martin Hernandez, Ruben"]
[Black "Gines Esteo, Pedro Antonio"]
[Result "0-1"]
[ECO "A06"]
[WhiteElo "2206"]
[BlackElo "2463"]
[Annotator "ChessBase"]
[PlyCount "104"]
[EventDate "2019.11.16"]
[EventType "swiss"]
[EventCountry "ESP"]
[SourceTitle "playchess.com"]
[Source "ChessBase"]
[SourceQuality "1"]
[TimeControl "5400+30"]

1. Nf3 {[%emt 0:01:51]} d5 {[%emt 0:00:34]} 2. c4 {[%emt 0:01:02]} c6 {[%emt 0:00:58]} 3. e3 {[%emt 0:03:45]} Nf6 {[%emt 0:00:43]} 4. b3 {[%emt 0:02:22]} Bg4 {[%emt 0:01:44]} 5. Bb2 {[%emt 0:00:48]} Nbd7 {[%emt 0:00:18]} 6. Be2 {[%emt 0:01:49]} Bxf3 {[%emt 0:00:31]} 7. gxf3 {[%emt 0:01:00]} e5 {[%emt 0:02:04]} 8. Rg1 {[%emt 0:12:17]} d4 {[%emt 0:07:33]} 9. exd4 {[%emt 0:02:07]} exd4 {[%emt 0:00:09]} 10. Bxd4 {[%emt 0:00:22]} Nc5 {[%emt 0:14:03]} 11. Be3 {[%emt 0:03:39]} Ne6 {[%emt 0:01:23]} 12. Nc3 {[%emt 0:02:38]} Qa5 {[%emt 0:15:07]} 13. Qc2 {[%emt 0:11:45]} Ba3 {[%emt 0:03:28]} 14. c5 {[%emt 0:12:19]} Bxc5 {[%emt 0:10:00]} 15. Qf5 {[%emt 0:00:19]} Bb4 {[%emt 0:03:29]} 16. Qxa5 {[%emt 0:01:20]} Bxa5 {[%emt 0:00:30]} 17. Bc4 {[%emt 0:04:06]} O-O {[%emt 0:05:42]} 18. Ne4 {[%emt 0:02:00]} Nd5 {[%emt 0:07:31]} 19. Bxd5 {[%emt 0:03:02]} cxd5 {[%emt 0:00:04]} 20. Nf6+ {[%emt 0:00:09]} Kh8 {[%emt 0:00:05]} 21. Nxd5 {[%emt 0:00:06]} Rfd8 {[%emt 0:00:17]} 22. b4 {[%emt 0:03:54]} Rxd5 {[%emt 0:00:32]} 23. bxa5 {[%emt 0:00:03]} Rxa5 {[%emt 0:00:09]} 24. Ke2 {[%emt 0:01:21]} g6 {[%emt 0:01:28]} 25. Rgc1 {[%emt 0:01:41]} Kg7 {[%emt 0:01:57]} 26. a4 {[%emt 0:00:17]} Rd8 {[%emt 0:02:50]} 27. Rab1 {[%emt 0:02:52]} b6 {[%emt 0:00:44]} 28. Rb4 {[%emt 0:00:03]} Re5 {[%emt 0:03:01]} 29. Kf1 {[%emt 0:02:00]} Rd3 {[%emt 0:01:54]} 30. Rc3 {[%emt 0:02:08]} Rdd5 {[%emt 0:00:58]} 31. Rc8 {[%emt 0:01:46]} Rd3 {[%emt 0:03:14]} 32. Rc3 {[%emt 0:01:52]} Rd7 {[%emt 0:00:05]} 33. Rc8 {[%emt 0:01:37]} Ra5 {[%emt 0:00:06]} 34. Ke2 {[%emt 0:01:14]} Re7 {[%emt 0:01:13]} 35. Kf1 {[%emt 0:02:09]} Rf5 {[%emt 0:00:28]} 36. Kg2 {[%emt 0:00:35]} Rd7 {[%emt 0:00:06]} 37. Ra8 {[%emt 0:03:22]} Ra5 {[%emt 0:00:28]} 38. Rc8 {[%emt 0:02:33]} Rd3 {[%emt 0:04:54]} 39. Rc3 {[%emt 0:00:56]} Rxc3 {[%emt 0:00:26]} 40. dxc3 {[%emt 0:00:07]} Nc5 {[%emt 0:00:02]} 41. Rb5 {[%emt 0:03:03]} Nxa4 {[%emt 0:01:42]} 42. Rxa5 bxa5 43. Bxa7 {[%emt 0:00:49]} Nb2 {[%emt 0:00:47]} 44. Bd4+ {[%emt 0:03:00]} f6 {[%emt 0:00:39]} 45. c4 {[%emt 0:00:05]} Nxc4 {[%emt 0:00:03]} 46. f4 {[%emt 0:00:15]} Kf7 {[%emt 0:00:40]} 47. Kf3 {[%emt 0:02:17]} Ke6 {[%emt 0:00:08]} 48. Ke4 {[%emt 0:01:25]} Nd6+ {[%emt 0:00:26]} 49. Kd3 {[%emt 0:01:02]} Kf5 {[%emt 0:01:25]} 50. h3 {[%emt 0:00:16]} h5 {[%emt 0:00:16]} 51. Kc2 {[%emt 0:00:42]} Nb5 {[%emt 0:00:50]} 52. Ba1 {[%emt 0:00:29]} Nc7 {[%emt 0:00:30]} 0-1

[Event "84th ESP-ch 2019"]
[Site "Marbella"]
[Date "2019.11.19"]
[Round "4.16"]
[White "Garcia Vicente, Nieves"]
[Black "Larino Nieto, David"]
[Result "0-1"]
[ECO "A41"]
[WhiteElo "2175"]
[BlackElo "2473"]
[Annotator "ChessBase"]
[PlyCount "62"]
[EventDate "2019.11.16"]
[EventType "swiss"]
[EventCountry "ESP"]
[SourceTitle "playchess.com"]
[Source "ChessBase"]
[SourceQuality "1"]
[TimeControl "5400+30"]

1. d4 {[%emt 0:00:00]} d6 {[%emt 0:02:32]} 2. Nf3 {[%emt 0:00:09]} Nd7 {[%emt 0:00:22]} 3. c4 {[%emt 0:00:16]} h6 {[%emt 0:00:09]} 4. Nc3 {[%emt 0:00:33]} g5 {[%emt 0:00:06]} 5. e4 {[%emt 0:03:38]} Bg7 {[%emt 0:00:11]} 6. Be3 {[%emt 0:00:23]} e6 {[%emt 0:00:08]} 7. Be2 {[%emt 0:06:56]} Ne7 {[%emt 0:00:56]} 8. d5 {[%emt 0:08:33]} Ng6 {[%emt 0:01:07]} 9. Qd2 {[%emt 0:07:17]} a6 {[%emt 0:01:46]} 10. O-O-O {[%emt 0:09:09]} Nf4 {[%emt 0:05:46]} 11. Bf1 {[%emt 0:03:35]} b5 {[%emt 0:03:11]} 12. Nd4 {[%emt 0:09:19]} b4 {[%emt 0:12:14]} 13. Nce2 {[%emt 0:08:29]} Nc5 {[%emt 0:02:21]} 14. Qc2 {[%emt 0:08:13]} Qf6 {[%emt 0:05:53]} 15. g3 {[%emt 0:01:31]} Ng6 {[%emt 0:00:21]} 16. f4 {[%emt 0:04:47]} O-O {[%emt 0:05:27]} 17. Bg2 {[%emt 0:00:54]} exd5 {[%emt 0:05:26]} 18. fxg5 {[%emt 0:01:53]} hxg5 {[%emt 0:00:27]} 19. Rhf1 {[%emt 0:00:20]} Qe5 {[%emt 0:01:11]} 20. Nf5 {[%emt 0:01:46]} dxc4 {[%emt 0:07:11]} 21. Nxg7 {[%emt 0:07:48]} Qxg7 {[%emt 0:01:41]} 22. Bxg5 {[%emt 0:04:27]} f6 {[%emt 0:03:36]} 23. Be3 {[%emt 0:01:51]} Ne5 {[%emt 0:00:10]} 24. Nd4 {[%emt 0:00:43]} Bg4 {[%emt 0:11:28]} 25. Rd2 {[%emt 0:00:33]} Rab8 {[%emt 0:00:22]} 26. Kb1 {[%emt 0:02:17]} b3 {[%emt 0:00:59]} 27. axb3 {[%emt 0:01:33]} cxb3 {[%emt 0:00:10]} 28. Qc3 {[%emt 0:01:02]} Qd7 {[%emt 0:00:11]} 29. Ne2 {[%emt 0:02:45]} Bxe2 {[%emt 0:06:04]} 30. Rxe2 {[%emt 0:00:01]} Qa4 {[%emt 0:00:08]} 31. Rd1 {[%emt 0:00:56]} Nc4 {[%emt 0:00:35]} 0-1

[Event "84th ESP-ch 2019"]
[Site "Marbella"]
[Date "2019.11.19"]
[Round "4.17"]
[White "Huerga Leache, Mikel"]
[Black "Rey Malde, Henrique"]
[Result "1-0"]
[ECO "A45"]
[WhiteElo "2456"]
[BlackElo "2209"]
[Annotator "ChessBase"]
[PlyCount "63"]
[EventDate "2019.11.16"]
[EventType "swiss"]
[EventCountry "ESP"]
[SourceTitle "playchess.com"]
[Source "ChessBase"]
[SourceQuality "1"]
[TimeControl "5400+30"]

1. d4 {[%emt 0:00:31]} Nf6 {[%emt 0:00:03]} 2. Bf4 {[%emt 0:00:13]} d5 {[%emt 0:00:38]} 3. e3 {[%emt 0:00:11]} c5 {[%emt 0:00:26]} 4. c3 {[%emt 0:00:10]} Nc6 {[%emt 0:00:10]} 5. Nd2 {[%emt 0:00:07]} Qb6 {[%emt 0:00:42]} 6. Qb3 {[%emt 0:00:10]} g6 {[%emt 0:00:24]} 7. Qxb6 {[%emt 0:00:14]} axb6 {[%emt 0:00:08]} 8. Bc7 {[%emt 0:00:08]} Nd7 {[%emt 0:09:30]} 9. Bb5 {[%emt 0:00:46]} Bg7 {[%emt 0:03:46]} 10. Ngf3 {[%emt 0:00:17]} O-O {[%emt 0:00:34]} 11. O-O {[%emt 0:00:10]} f6 {[%emt 0:31:29]} 12. Rfe1 {[%emt 0:06:33]} e5 {[%emt 0:10:21]} 13. dxe5 {[%emt 0:04:28]} Ncxe5 {[%emt 0:04:41]} 14. e4 {[%emt 0:02:23]} Nxf3+ {[%emt 0:03:24]} 15. Nxf3 {[%emt 0:01:18]} dxe4 {[%emt 0:00:09]} 16. Rxe4 {[%emt 0:00:50]} Ne5 {[%emt 0:10:26]} 17. Nxe5 {[%emt 0:04:35]} fxe5 {[%emt 0:00:08]} 18. Bxb6 {[%emt 0:01:42]} Be6 {[%emt 0:02:02]} 19. Bxc5 {[%emt 0:01:58]} Rfd8 {[%emt 0:00:21]} 20. a4 {[%emt 0:06:06]} Rd2 {[%emt 0:01:46]} 21. Rb4 {[%emt 0:11:40]} Rad8 {[%emt 0:01:44]} 22. Kf1 {[%emt 0:04:30]} Bh6 {[%emt 0:09:38]} 23. Be2 {[%emt 0:01:38]} Bd5 {[%emt 0:00:41]} 24. Rd1 {[%emt 0:01:57]} Bc6 {[%emt 0:01:54]} 25. Rxd2 {[%emt 0:00:22]} Rxd2 {[%emt 0:00:04]} 26. g3 {[%emt 0:01:39]} Rc2 {[%emt 0:01:12]} 27. Bd3 {[%emt 0:04:10]} Rc1+ {[%emt 0:00:39]} 28. Ke2 {[%emt 0:00:07]} Bg2 {[%emt 0:00:21]} 29. Be3 {[%emt 0:00:50]} Bxe3 {[%emt 0:01:13]} 30. Kxe3 {[%emt 0:00:32]} Re1+ {[%emt 0:01:12]} 31. Kd2 {[%emt 0:00:11]} Rh1 {[%emt 0:00:48]} 32. Be4 {[%emt 0:01:58]} 1-0

[Event "84th ESP-ch 2019"]
[Site "Marbella"]
[Date "2019.11.19"]
[Round "4.18"]
[White "Merario Alarcon, Andres"]
[Black "Martinez Piqueras, Carlos"]
[Result "1-0"]
[ECO "E32"]
[WhiteElo "2394"]
[BlackElo "2206"]
[Annotator "ChessBase"]
[PlyCount "47"]
[EventDate "2019.11.16"]
[EventType "swiss"]
[EventCountry "ESP"]
[SourceTitle "playchess.com"]
[Source "ChessBase"]
[SourceQuality "1"]
[TimeControl "5400+30"]

1. d4 {[%emt 0:00:00]} Nf6 {[%emt 0:00:00]} 2. c4 {[%emt 0:00:00]} e6 {[%emt 0:00:30]} 3. Nc3 {[%emt 0:00:38]} Bb4 {[%emt 0:00:22]} 4. Qc2 {[%emt 0:00:28]} b6 {[%emt 0:03:27]} 5. e4 {[%emt 0:00:27]} c5 {[%emt 0:00:39]} 6. d5 {[%emt 0:00:11]} Qe7 {[%emt 0:00:07]} 7. Nge2 {[%emt 0:00:13]} exd5 {[%emt 0:03:24]} 8. exd5 {[%emt 0:00:11]} b5 {[%emt 0:22:58]} 9. Bg5 {[%emt 0:06:50]} h6 {[%emt 0:17:23]} 10. Bh4 {[%emt 0:06:37]} bxc4 {[%emt 0:09:47]} 11. O-O-O {[%emt 0:02:17]} d6 {[%emt 0:03:17]} 12. a3 {[%emt 0:06:23]} Bxc3 {[%emt 0:02:39]} 13. Nxc3 {[%emt 0:00:15]} O-O {[%emt 0:01:39]} 14. Bxc4 {[%emt 0:01:12]} Nbd7 {[%emt 0:07:53]} 15. Rde1 {[%emt 0:22:53]} Qd8 {[%emt 0:00:41]} 16. f4 {[%emt 0:00:22]} Qa5 {[%emt 0:05:37]} 17. g4 {[%emt 0:02:12]} Ba6 {[%emt 0:01:53]} 18. Ba2 {[%emt 0:05:02]} Rae8 {[%emt 0:02:24]} 19. Bb1 {[%emt 0:06:43]} g6 {[%emt 0:07:59]} 20. Re6 {[%emt 0:00:16]} fxe6 {[%emt 0:01:32]} 21. Qxg6+ {[%emt 0:00:10]} Kh8 {[%emt 0:00:01]} 22. Qxh6+ {[%emt 0:00:12]} Kg8 {[%emt 0:00:05]} 23. Qg6+ {[%emt 0:00:36]} Kh8 {[%emt 0:00:14]} 24. g5 {[%emt 0:00:31]} 1-0

[Event "84th ESP-ch 2019"]
[Site "Marbella"]
[Date "2019.11.19"]
[Round "4.19"]
[White "Vega Gutierrez, Sabrina"]
[Black "Perera Borrego, Maria Adela"]
[Result "1-0"]
[ECO "C00"]
[WhiteElo "2374"]
[BlackElo "2201"]
[Annotator "ChessBase"]
[PlyCount "73"]
[EventDate "2019.11.16"]
[EventType "swiss"]
[EventCountry "ESP"]
[SourceTitle "playchess.com"]
[Source "ChessBase"]
[SourceQuality "1"]
[TimeControl "5400+30"]

1. e4 {[%emt 0:00:00]} e6 {[%emt 0:00:00]} 2. Qe2 {[%emt 0:00:00]} Nc6 {[%emt 0:00:01]} 3. Nf3 {[%emt 0:00:00]} d5 {[%emt 0:03:41]} 4. exd5 {[%emt 0:00:23]} Qxd5 {[%emt 0:00:09]} 5. Nc3 {[%emt 0:00:12]} Qd8 {[%emt 0:01:56]} 6. d4 {[%emt 0:00:27]} Be7 {[%emt 0:04:18]} 7. Be3 {[%emt 0:22:29]} Nf6 {[%emt 0:00:52]} 8. O-O-O {[%emt 0:00:24]} O-O {[%emt 0:01:16]} 9. h4 {[%emt 0:09:31]} b5 {[%emt 0:08:57]} 10. Ne5 {[%emt 0:09:13]} Na5 {[%emt 0:19:46]} 11. Qxb5 {[%emt 0:03:25]} c6 {[%emt 0:00:56]} 12. Qa4 {[%emt 0:06:18]} Rb8 {[%emt 0:07:34]} 13. a3 {[%emt 0:00:34]} Bd7 {[%emt 0:09:40]} 14. Nxd7 {[%emt 0:01:27]} Nxd7 {[%emt 0:00:36]} 15. Bf4 {[%emt 0:00:25]} Rxb2 {[%emt 0:08:43]} 16. Kxb2 {[%emt 0:07:49]} Nb6 {[%emt 0:02:24]} 17. Qxa5 {[%emt 0:00:19]} Nc4+ {[%emt 0:00:10]} 18. Bxc4 {[%emt 0:00:08]} Qxa5 {[%emt 0:00:06]} 19. Nb1 {[%emt 0:05:44]} Bf6 {[%emt 0:05:46]} 20. Bb3 {[%emt 0:06:28]} Qf5 {[%emt 0:05:25]} 21. Bg5 {[%emt 0:17:38]} c5 {[%emt 0:03:21]} 22. Bxf6 {[%emt 0:00:13]} Qxf6 {[%emt 0:00:19]} 23. Rh3 {[%emt 0:02:51]} cxd4 {[%emt 0:01:20]} 24. Rf3 {[%emt 0:01:02]} Qxh4 {[%emt 0:00:24]} 25. g3 {[%emt 0:00:35]} Qg4 {[%emt 0:03:28]} 26. Rfd3 {[%emt 0:00:01]} e5 {[%emt 0:01:29]} 27. Re1 {[%emt 0:02:02]} Qf5 {[%emt 0:04:49]} 28. Nd2 {[%emt 0:00:13]} Rb8 {[%emt 0:01:35]} 29. Ka2 {[%emt 0:01:09]} Qh5 {[%emt 0:02:43]} 30. Nc4 {[%emt 0:00:43]} Qf5 {[%emt 0:01:35]} 31. Rxe5 {[%emt 0:01:19]} Qxf2 {[%emt 0:00:10]} 32. Nd6 {[%emt 0:00:13]} g6 {[%emt 0:00:31]} 33. Re7 {[%emt 0:01:59]} Qg2 {[%emt 0:01:23]} 34. Rxf7 {[%emt 0:00:56]} Rxb3 {[%emt 0:00:25]} 35. Rxb3 {[%emt 0:00:14]} Qd5 {[%emt 0:01:02]} 36. Rc7 {[%emt 0:00:20]} a5 {[%emt 0:00:29]} 37. Kb2 {[%emt 0:00:27]} 1-0

[Event "84th ESP-ch 2019"]
[Site "Marbella"]
[Date "2019.11.19"]
[Round "4.20"]
[White "Arroyo Rodriguez, Jesus"]
[Black "Serarols Mabras, Bernat"]
[Result "0-1"]
[ECO "A06"]
[WhiteElo "2112"]
[BlackElo "2367"]
[Annotator "ChessBase"]
[PlyCount "66"]
[EventDate "2019.11.16"]
[EventType "swiss"]
[EventCountry "ESP"]
[SourceTitle "playchess.com"]
[Source "ChessBase"]
[SourceQuality "1"]
[TimeControl "5400+30"]

1. Nf3 {[%emt 0:00:00]} d5 {[%emt 0:00:23]} 2. b3 {[%emt 0:00:00]} c5 {[%emt 0:00:42]} 3. Bb2 {[%emt 0:00:11]} Nc6 {[%emt 0:00:17]} 4. d4 {[%emt 0:00:51]} cxd4 {[%emt 0:01:29]} 5. Nxd4 {[%emt 0:00:15]} Nf6 {[%emt 0:00:17]} 6. e3 {[%emt 0:01:31]} e6 {[%emt 0:00:34]} 7. Be2 {[%emt 0:04:24]} Qa5+ {[%emt 0:08:16]} 8. Qd2 {[%emt 0:07:48]} Bb4 {[%emt 0:10:59]} 9. c3 {[%emt 0:00:24]} Bd6 {[%emt 0:00:52]} 10. O-O {[%emt 0:04:22]} O-O {[%emt 0:03:42]} 11. c4 Bb4 {[%emt 0:13:40]} 12. Qc2 {[%emt 0:10:07]} Nxd4 {[%emt 0:01:31]} 13. Bxd4 {[%emt 0:00:43]} dxc4 {[%emt 0:00:32]} 14. Bxc4 {[%emt 0:01:31]} Bd7 {[%emt 0:09:31]} 15. a3 {[%emt 0:07:12]} Be7 {[%emt 0:01:54]} 16. Qb2 {[%emt 0:03:04]} Bc6 {[%emt 0:01:13]} 17. b4 {[%emt 0:04:17]} Qg5 {[%emt 0:04:18]} 18. f4 {[%emt 0:01:37]} Qg6 {[%emt 0:07:29]} 19. Nc3 {[%emt 0:01:09]} Rac8 {[%emt 0:05:59]} 20. Ba2 {[%emt 0:01:20]} b6 {[%emt 0:00:26]} 21. Rac1 {[%emt 0:01:49]} Rfd8 {[%emt 0:01:38]} 22. Bb1 {[%emt 0:01:27]} Qh6 {[%emt 0:00:54]} 23. Qe2 {[%emt 0:10:49]} Bb7 {[%emt 0:02:16]} 24. g4 {[%emt 0:13:42]} Qh3 {[%emt 0:02:17]} 25. g5 {[%emt 0:01:12]} Nd5 {[%emt 0:07:43]} 26. Nxd5 {[%emt 0:03:42]} Bxd5 {[%emt 0:00:05]} 27. Bd3 {[%emt 0:03:29]} Bb7 {[%emt 0:03:54]} 28. Rxc8 {[%emt 0:06:00]} Rxc8 {[%emt 0:00:23]} 29. Qf2 {[%emt 0:02:07]} f6 {[%emt 0:02:35]} 30. g6 {[%emt 0:01:18]} hxg6 {[%emt 0:02:01]} 31. Bxg6 {[%emt 0:00:59]} f5 {[%emt 0:00:12]} 32. Re1 {[%emt 0:02:58]} Qh6 {[%emt 0:00:19]} 33. Qg3 {[%emt 0:00:59]} Bh4 {[%emt 0:00:19]} 0-1

[Event "84th ESP-ch 2019"]
[Site "Marbella"]
[Date "2019.11.19"]
[Round "4.21"]
[White "Perez Garcia, Alejandro"]
[Black "Guadamuro Torrente, Anabel"]
[Result "1-0"]
[ECO "A04"]
[WhiteElo "2343"]
[BlackElo "2145"]
[Annotator "ChessBase"]
[PlyCount "65"]
[EventDate "2019.11.16"]
[EventType "swiss"]
[EventCountry "ESP"]
[SourceTitle "playchess.com"]
[Source "ChessBase"]
[SourceQuality "1"]
[TimeControl "5400+30"]

1. Nf3 {[%emt 0:00:00]} b6 {[%emt 0:00:00]} 2. e4 {[%emt 0:00:49]} Bb7 {[%emt 0:00:25]} 3. Nc3 {[%emt 0:00:14]} e6 {[%emt 0:01:07]} 4. d4 {[%emt 0:00:11]} Bb4 {[%emt 0:08:58]} 5. Bd3 {[%emt 0:00:07]} Nf6 {[%emt 0:01:11]} 6. Nd2 {[%emt 0:01:33]} d6 {[%emt 0:14:09]} 7. O-O {[%emt 0:10:31]} Nbd7 {[%emt 0:07:24]} 8. f4 {[%emt 0:20:48]} e5 {[%emt 0:05:26]} 9. a3 {[%emt 0:01:29]} exd4 {[%emt 0:03:08]} 10. axb4 {[%emt 0:00:30]} dxc3 {[%emt 0:00:07]} 11. bxc3 {[%emt 0:02:49]} O-O {[%emt 0:01:05]} 12. Bb2 {[%emt 0:08:43]} Re8 {[%emt 0:10:31]} 13. Qf3 {[%emt 0:04:06]} a5 {[%emt 0:02:50]} 14. g4 {[%emt 0:02:55]} Qe7 {[%emt 0:18:32]} 15. Rae1 {[%emt 0:01:04]} h6 {[%emt 0:03:15]} 16. h4 {[%emt 0:02:40]} d5 {[%emt 0:06:08]} 17. e5 {[%emt 0:04:43]} Ne4 {[%emt 0:00:36]} 18. Nxe4 {[%emt 0:03:01]} dxe4 {[%emt 0:00:04]} 19. Bxe4 {[%emt 0:00:08]} Bxe4 {[%emt 0:00:10]} 20. Rxe4 {[%emt 0:02:04]} Qxh4 {[%emt 0:01:03]} 21. Re2 {[%emt 0:09:12]} Qe7 {[%emt 0:00:53]} 22. g5 {[%emt 0:07:41]} axb4 {[%emt 0:06:03]} 23. gxh6 {[%emt 0:01:35]} Qc5+ {[%emt 0:00:40]} 24. Kh1 {[%emt 0:01:56]} bxc3 {[%emt 0:01:29]} 25. Bxc3 {[%emt 0:08:47]} Ra3 {[%emt 0:00:17]} 26. Qg2 {[%emt 0:01:48]} g6 {[%emt 0:01:00]} 27. f5 {[%emt 0:01:50]} Ra4 {[%emt 0:06:11]} 28. h7+ {[%emt 0:01:54]} Kh8 {[%emt 0:00:43]} 29. Qh3 {[%emt 0:00:33]} Nxe5 {[%emt 0:00:32]} 30. fxg6 {[%emt 0:00:21]} Qc6+ {[%emt 0:00:30]} 31. Rg2 {[%emt 0:00:16]} fxg6 {[%emt 0:00:21]} 32. Bxe5+ {[%emt 0:00:11]} Rxe5 {[%emt 0:00:07]} 33. Rf8+ {[%emt 0:00:04]} 1-0